Cogmind - Beta 13 @@@ ROGUE MODE // 2024.06.05 @ 16:21:59 Player: delto Result: Destroyed by B-75 Beast with Heavy Plasma Cannon Performance ------------- Evolutions (4) 2000 Regions Visited (5) 1000 Robots Destroyed (51) 255 Value Destroyed (1770) 1770 Prototype IDs (0) 0 Alien Tech Used (0) 0 Bonus (0) 0 TOTAL SCORE: 5025 Bonus ------- None Cogmind --------- Core Integrity 0/850 Matter 122/300 Energy 274/275 System Corruption 0% Temperature Cool (15) Movement Hovering (126) Ox1 Location -6/Factory Parts ------- > --- POWER (2) -------- Deuterium Engine Fusion Compressor > --- PROPULSION (4) --- Combat Airjet Gravmag Array > --- UTILITY (6) ------ Improved Trap Scanner Enhanced Optical Array Improved Signal Interpreter Advanced Targeting Computer Target Analyzer Improved Light Armor Plating > --- WEAPON (3) ------- Plasma Rifle Plasma Rifle Heavy Plasma Cannon > --- INVENTORY (5) ---- (None) Peak State ------------ > --- POWER ------------ Fission Core Light Fission Core > --- PROPULSION ------- Improved Carbon-fiber Leg Improved Carbon-fiber Leg Flexi-carbon Leg Armored Leg > --- UTILITY ---------- Advanced Heat Sink Improved Trap Scanner Improved Sensor Array Improved Signal Interpreter Medium Insulated Plating EM Disruption Field > --- WEAPON ----------- Plasma Rifle Plasma Rifle Phase Cannon > --- INVENTORY -------- Fusion Compressor Improved Trap Scanner Focal Shield Plasma Rifle [Rating: 70] Favorites ----------- Power Ion Engine Engine Ion Engine Power Core Nuclear Core Propulsion Improved Carbon-fiber Leg Treads Light Treads Leg Improved Carbon-fiber Leg Wheel Compact Wheel Hover Unit Combat Airjet Flight Unit Nuclear Pulse Thruster Utility Advanced Heat Sink Device Advanced Heat Sink Storage Compact Matter Pod Processor Improved Signal Interpreter Protection Medium Insulated Plating Weapon Plasma Rifle Energy Gun Plasma Rifle Energy Cannon Phase Cannon Ballistic Gun Minigun Ballistic Cannon Advanced Assault Cannon Special Weapon Mining Laser Slashing Weapon Katana Build | -11 -10 -10 -8 -7 -6 ------- Run | Yrd Mat Sub Mat Fac Fac Slots Evolved 8 | . . . 4 2 2 Power 1 | . . . . . 1 Propulsion 2 | . . . . 1 1 Utility 4 | . . . 3 1 . Weapon 1 | . . . 1 . . Parts Attached 88 | 7 2 12 18 6 43 Power 15 | 1 . 1 2 . 11 Engine 6 | 1 . 1 1 . 3 Core 9 | . . . 1 . 8 Reactor . | . . . . . . Propulsion 14 | 2 . 1 2 1 8 Treads 2 | 1 . 1 . . . Leg 7 | . . . 2 1 4 Wheel 1 | 1 . . . . . Hover 3 | . . . . . 3 Flight 1 | . . . . . 1 Utility 30 | 2 . 2 8 4 14 Device 18 | 1 . 1 6 2 8 Storage 2 | 1 . . 1 . . Processor 4 | . . . . . 4 Hackware . | . . . . . . Protection 6 | . . 1 1 2 2 Artifact . | . . . . . . Weapon 29 | 2 2 8 6 1 10 Energy Gun 13 | 2 1 3 2 . 5 Energy Cannon 5 | . . . 1 . 4 Ballistic Gun 3 | . . 1 2 . . Ballistic Cannon 3 | . . 2 . 1 . Launcher . | . . . . . . Special Weapon 4 | . 1 2 . . 1 Impact Weapon . | . . . . . . Slashing Weapon 1 | . . . 1 . . Piercing Weapon . | . . . . . . Special Melee Weapon . | . . . . . . Unidentified Prototypes . | . . . . . . Parts Lost 36 | . . 6 1 1 28 Power 7 | . . 1 . . 6 Propulsion 9 | . . 1 . . 8 Utility 11 | . . . 1 1 9 Weapon 9 | . . 4 . . 5 Highest Loss Streak 17 | . . 2 1 1 17 To Critical Strikes . | . . . . . . Average Slot Usage (%) 92 | . 100 96 98 99 82 Engine 8 | . 14 14 5 7 5 Core 2 | . . . 3 . 3 Treads 4 | . 14 14 . . . Leg 11 | . . . 16 23 16 Wheel 4 | . 14 14 . . . Device 21 | . 14 17 23 28 21 Storage 3 | . 14 2 8 1 . Processor 3 | . . . . . 8 Protection 8 | . . 8 13 14 6 Energy Gun 10 | . 25 11 10 . 8 Energy Cannon 2 | . . . 1 7 3 Ballistic Gun 4 | . . 3 13 3 . Ballistic Cannon 2 | . . 5 . 3 1 Special Weapon 1 | . 2 4 . . . Slashing Weapon 1 | . . . 1 7 . Naked Turns . | . . . . . . Heaviest Build 53 | 13 14 18 35 42 53 Greatest Support 72 | 20 16 20 36 54 72 Greatest Overweight (x) 2 | 1 . 1 1 . 2 Average Overweight (x) . | . . . . . . Largest Inventory Capacity 8 | 8 8 8 5 5 5 Average Capacity 5 | 7 8 5 5 5 5 Most Carried 8 | 7 8 8 5 5 5 Average Carried 3 | 3 7 3 4 4 3 Final Capacity 8 | 8 8 5 5 5 5 Final Carried 8 | 7 8 4 5 5 . Class Distribution -------------------- 59% | Mutant 16% | Scavenger-Tank 9% | Tank 7% | Scavenger-Skirmisher 4% | Skirmisher Dominant Class ---------------- Mutant | -10/Materials Mutant | -10/Subcaves Scavenger-Tank | -8/Materials Mutant | -7/Factory Mutant | -6/Factory Resources | -11 -10 -10 -8 -7 -6 ----------- Run | Yrd Mat Sub Mat Fac Fac Matter Collected 1520 | 270 . 195 600 99 356 Remotely . | . . . . . . Salvage Created 2025 | 26 . 128 950 146 775 Parts 100 | 3 . 2 52 4 39 Haulers Intercepted . | . . . . . . Recyclers Shooed 2 | . . . . . 2 Parts Field Recycled . | . . . . . . Retrieved Matter . | . . . . . . Parts Self-Destructed 6 | . . 6 . . . Prevented . | . . . . . . Kills | -11 -10 -10 -8 -7 -6 ------- Run | Yrd Mat Sub Mat Fac Fac Combat Hostiles Destroyed 33 | . . 3 18 3 9 Guns 21 | . . 1 18 . 2 Cannons 7 | . . 1 . 3 3 AOE 2 | . . . . . 2 Classes Destroyed 12 | 1 . 2 5 . 4 Worker 5 | . . . . . 5 Tunneler 1 | 1 . . . . . Recycler 4 | . . . 2 . 2 Mechanic 1 | . . . . . 1 Operator 1 | . . . . . 1 Watcher 6 | . . . 3 . 3 Swarmer 6 | . . . 6 . . Grunt 14 | . . 1 8 2 3 Sentry 5 | . . . 3 1 1 Hunter 4 | . . . 1 . 3 Programmer 2 | . . . . . 2 Subdweller 2 | . . 2 . . . Best Kill Streak 8 | 1 . 1 6 2 8 Combat Bots Only 5 | . . 1 5 2 2 Max Kills in Single Turn 8 | 1 . 1 3 1 8 Gunslinging 2 | . . . 2 . . Exploded 2 | . . . . . 2 Melee . | . . . . . . Uniques/NPCs Destroyed . | . . . . . . Combat | -11 -10 -10 -8 -7 -6 -------- Run | Yrd Mat Sub Mat Fac Fac Hostile Shots Fired 494 | . . 58 74 47 315 Missed 139 | . . 17 20 20 82 Damage Taken 5549 | . . 821 759 289 3680 Core 1182 | . . 117 160 40 865 Absorbed by Shields . | . . . . . . Ignored by Resistances 127 | . . . . 7 120 Core Remaining (%) 79 | 100 . 53 70 94 . Volleys Fired 157 | 1 10 24 51 13 58 Largest 3 | 2 2 2 3 2 3 Hottest 235 | 80 150 150 129 108 235 Shots Fired 378 | 2 20 37 149 26 144 Gun 277 | 2 12 20 145 7 91 Cannon 86 | . . 12 4 19 51 Launcher . | . . . . . . Special 15 | . 8 5 . . 2 Kinetic 118 | . . 17 87 13 1 Thermal 248 | 2 20 10 62 13 141 Explosive . | . . . . . . Electromagnetic 10 | . . 10 . . . Robot Hit Streak 17 | 1 5 5 17 5 6 Robot Miss Streak 8 | 1 2 2 5 6 8 Penetration Max . | . . . . . . Secondary Targets 2 | . . . 2 . . Max Gunslinging Chain 2 | . . . 2 . . Shots Hit Robots 191 | 1 4 21 92 14 59 Core Hits 87 | 1 . 5 47 8 26 Critical Kills . | . . . . . . Critical Parts Destroyed 1 | . . . . 1 . Critical Strikes 9 | . . 1 2 2 4 Burn 6 | . . . 2 . 4 Destroy 1 | . . . . 1 . Blast 2 | . . 1 . 1 . Melee Attacks . | . . . . . . Impact . | . . . . . . Slashing . | . . . . . . Piercing . | . . . . . . Sneak Attacks . | . . . . . . Combat Hostiles . | . . . . . . Follow-up Attacks . | . . . . . . Damage Inflicted 5097 | 10 70 317 1416 334 2950 Guns 2604 | 10 46 178 1394 46 930 Cannons 1125 | . . 139 22 268 696 Explosions 1344 | . . . . 20 1324 Melee . | . . . . . . Ramming . | . . . . . . Kinetic 1333 | . . 164 966 178 25 Thermal 3307 | 10 70 42 450 136 2599 Explosive 326 | . . . . . 326 Electromagnetic 131 | . . 111 . 20 . Impact . | . . . . . . Slashing . | . . . . . . Piercing . | . . . . . . Highest Corruption . | . . . . . . Average Corruption . | . . . . . . Corruption Purged . | . . . . . . Corruption Blocked . | . . . . . . Overload Shots . | . . . . . . Overflow Damage 245 | . 6 . . . 239 Projectiles 64 | . 6 . . . 58 Explosions 181 | . . . . . 181 Melee . | . . . . . . Knockbacks 5 | . . 4 . 1 . Impact . | . . . . . . Kinetic 5 | . . 4 . 1 . Secondary . | . . . . . . Self-Inflicted Damage 156 | . . . . . 156 Shots 2 | . . . . . 2 Rammed . | . . . . . . Targets Rammed . | . . . . . . Kicked . | . . . . . . Crushed . | . . . . . . Highest Temperature 658 | 18 340 225 105 16 658 Average Temperature 117 | 12 149 97 29 9 162 Received Heat Transfer 1366 | . . 538 324 111 393 Effects 19 | . 1 . . . 18 Shutdowns 5 | . . . . . 5 Energy Bleed 3 | . 1 . . . 2 Interference 2 | . . . . . 2 Matter Decay 3 | . . . . . 3 Short Circuit 1 | . . . . . 1 Damage (minor) 2 | . . . . . 2 Damage (major) 1 | . . . . . 1 Damage (core) 2 | . . . . . 2 Siege Activations . | . . . . . . Robots Corrupted 1 | . . 1 . . . Combat Hostiles 1 | . . 1 . . . Parts Fried 1 | . . 1 . . . Impact Corruptions . | . . . . . . Robots Melted 3 | . . . . . 3 Combat Hostiles 2 | . . . . . 2 Parts Melted 11 | . . . 2 1 8 Heat Transferred 5796 | 25 186 100 1284 222 3979 Parts Sabotaged . | . . . . . . Parts Stolen . | . . . . . . Parts Stripped . | . . . . . . Power Chain Reactions . | . . . . . . Alert | -11 -10 -10 -8 -7 -6 ------- Run | Yrd Mat Sub Mat Fac Fac Peak Influence 345 | 5 3 . 345 246 311 Initial 156 | . 3 . . 156 120 Average 146 | 2 3 . 175 187 158 Maximum Alert Level 1 | . . . 1 1 1 Low Security (%) 70 | 100 100 . 58 83 68 Level 1 29 | . . . 41 16 31 Level 2 . | . . . . . . Level 3 . | . . . . . . Level 4 . | . . . . . . Level 5 . | . . . . . . High Security . | . . . . . . Max Security . | . . . . . . Squads Dispatched 8 | . . . 1 1 6 Investigation 1 | . . . . 1 . Extermination 2 | . . . . . 2 Reinforcement 4 | . . . . . 4 Assault . | . . . . . . Garrison 1 | . . . 1 . . Intercept . | . . . . . . Searches Triggered . | . . . . . . Construction Impeded 1 | . . . . . 1 Haulers Reinforced . | . . . . . . Active Scanning Responses . | . . . . . . Cargo Convoy Interrupts . | . . . . . . Stealth | -11 -10 -10 -8 -7 -6 --------- Run | Yrd Mat Sub Mat Fac Fac Distress Signals 3 | . . . 3 . . Communications Jammed . | . . . . . . Distress Signals . | . . . . . . Times Spotted 66 | . . 10 29 3 24 Peak Tracking Total 8 | . . 4 8 2 6 Tactical Retreats 5 | . . 1 . . 4 Traps | -11 -10 -10 -8 -7 -6 ------- Run | Yrd Mat Sub Mat Fac Fac Traps Triggered . | . . . . . . Indirectly . | . . . . . . Trap Hack Attempts . | . . . . . . Triggered . | . . . . . . Disarmed . | . . . . . . Reprogrammed . | . . . . . . Reused . | . . . . . . Traps Extracted . | . . . . . . Installed . | . . . . . . Triggered . | . . . . . . Machines | -11 -10 -10 -8 -7 -6 ---------- Run | Yrd Mat Sub Mat Fac Fac Machines Disabled 11 | . . . . 1 10 Max in Single Turn 7 | . . . . 1 7 Machines Repaired . | . . . . . . Machines Dismantled . | . . . . . . Machines Sabotaged . | . . . . . . Overloaded Fab Kills . | . . . . . . Hacking | -11 -10 -10 -8 -7 -6 --------- Run | Yrd Mat Sub Mat Fac Fac Machines Accessed 7 | . 1 1 2 1 2 Terminals 5 | . . . 2 1 2 Fabricators . | . . . . . . Repair Stations . | . . . . . . Recycling Units 1 | . 1 . . . . Scanalyzers . | . . . . . . Garrison Access . | . . . . . . Total Hacks 11 | . 1 3 2 3 2 Successful 7 | . 1 3 1 2 . Failed 4 | . . . 1 1 2 Catastrophic . | . . . . . . Database Lockouts . | . . . . . . Manual 5 | . . 1 2 1 1 Terminals 7 | . . . 2 3 2 Fabricators . | . . . . . . Repair Stations . | . . . . . . Recycling Units 1 | . 1 . . . . Scanalyzers . | . . . . . . Garrison Access . | . . . . . . Terminal Hacks 4 | . . 3 . 1 . Record 4 | . . 3 . 1 . Fabricator Hacks . | . . . . . . Repair Station Hacks . | . . . . . . Recycling Unit Hacks 1 | . 1 . . . . Report Inventory 1 | . 1 . . . . Scanalyzer . | . . . . . . Garrison Access Hacks . | . . . . . . Unauthorized Hacks 2 | . . . 1 1 . Terminals 2 | . . . 1 1 . Botnet 2 | . . . 1 1 . Fabricators . | . . . . . . Repair Stations . | . . . . . . Recycling Units . | . . . . . . Scanalyzers . | . . . . . . Garrison Access . | . . . . . . Data Cores Recovered . | . . . . . . Used . | . . . . . . Hacking Detections 2 | . . . . 1 1 Full Trace Events 1 | . . . . 1 . Feedback Events . | . . . . . . Feedback Blocked . | . . . . . . Robot Schematics Acquired . | . . . . . . Robots Built . | . . . . . . Authchips . | . . . . . . Time . | . . . . . . Total Robot Build Rating . | . . . . . . Part Schematics Acquired . | . . . . . . Parts Built . | . . . . . . Authchips . | . . . . . . Time . | . . . . . . Total Part Build Rating . | . . . . . . Parts Repaired . | . . . . . . Time . | . . . . . . Parts Recycled . | . . . . . . Recycled Matter . | . . . . . . Retrieved Matter . | . . . . . . Retrieved Components . | . . . . . . Parts Scanalyzed . | . . . . . . Part Schematics Acquired . | . . . . . . Parts Damaged . | . . . . . . Bothacking | -11 -10 -10 -8 -7 -6 ------------ Run | Yrd Mat Sub Mat Fac Fac Used RIF Installer . | . . . . . . Robots Hacked 2 | . . . . . 2 Non-combat 1 | . . . . . 1 Combat 1 | . . . . . 1 Robot Hacks Applied 2 | . . . . . 2 parse_system 1 | . . . . . 1 find_recycling 1 | . . . . . 1 Relay Couplers Released . | . . . . . . Fabnet Peak Effective % . | . . . . . . Robots Rewired . | . . . . . . Allies Hacked . | . . . . . . Hacks Repelled . | . . . . . . Allies | -11 -10 -10 -8 -7 -6 -------- Run | Yrd Mat Sub Mat Fac Fac Total Allies . | . . . . . . Largest Group . | . . . . . . Highest-Rated Group . | . . . . . . Highest-Rated Ally . | . . . . . . Total Orders . | . . . . . . Ally Attacks . | . . . . . . Total Damage . | . . . . . . Kills . | . . . . . . Allies Corrupted . | . . . . . . Allies Melted . | . . . . . . Intel | -11 -10 -10 -8 -7 -6 ------- Run | Yrd Mat Sub Mat Fac Fac Robot Analysis Total . | . . . . . . Derelict Logs Recovered . | . . . . . . Drone Launches . | . . . . . . Drone Recoveries . | . . . . . . Exploration | -11 -10 -10 -8 -7 -6 ------------- Run | Yrd Mat Sub Mat Fac Fac Turns Passed 3517 | 86 248 850 789 239 1305 Spaces Moved 2391 | 65 170 567 462 159 968 Core 9 | 3 . . . . 6 Treads 298 | 1 . 297 . . . Legs 1114 | . . . 412 159 543 Wheels 551 | 61 170 270 50 . . Hover 369 | . . . . . 369 Flight 50 | . . . . . 50 Fastest Speed 40 | 50 100 100 115 120 40 Average Speed 113 | 100 100 131 119 120 102 Slowest Speed 260 | 160 100 160 190 120 260 Overloaded Moves . | . . . . . . Propulsion Burnouts . | . . . . . . Robots Hopped . | . . . . . . Cave-ins Triggered . | . . . . . . Exploration Rate (%) 22 | 4 22 26 44 4 32 Regions Visited 5 Branch Regions 1 Pre-discovered Areas . | . . . . . . Known Exits Taken . | . . . . . . Unknown Exits Taken 5 | 1 1 1 1 1 . Scrap Searched 4 | . . 4 . . . Spaces Dug 6 | . . . . . 6 Terrain Destroyed 73 | . . . 1 . 72 Melee . | . . . . . . Projectile 17 | . . . 1 . 16 AOE 56 | . . . . . 56 Terrain Rammed . | . . . . . . Walls Destroyed . | . . . . . . Machines Disabled . | . . . . . . Actions | -11 -10 -10 -8 -7 -6 --------- Run | Yrd Mat Sub Mat Fac Fac Total 2867 | 81 213 627 597 182 1167 Wait 102 | . 21 . 21 . 60 Move 2386 | 64 169 566 461 158 968 Hop . | . . . . . . Pick Up 71 | 9 6 11 25 2 18 Fast Attach 33 | 5 . 3 3 3 19 Attach 29 | 2 . 3 5 3 16 Detach 8 | . . 1 . 1 6 Swap 26 | . 2 6 10 . 8 Drop 55 | . 5 13 21 2 14 Fire 157 | 1 10 24 51 13 58 Melee . | . . . . . . Ram . | . . . . . . Kick . | . . . . . . Crush . | . . . . . . Escape Stasis . | . . . . . . Rewire . | . . . . . . Trap . | . . . . . . Miscellaneous . | . . . . . . Route ------- -11/Scrapyard -10/Materials -10/Subcaves -8/Materials -7/Factory -6/Factory (discovered 1 exit: [*Fac]) History --------- Turn | Location | Event 12 | -11/Scrapyard | Discovered new exit (range 15) 87 | -11/Scrapyard | Entered Materials 113 | -10/Materials | Discovered new exit (range 16) 310 | -10/Materials | Build established: Mutant 335 | -10/Materials | Entered Subcaves 405 | -10/Subcaves | Disturbed a concealed Subdweller 687 | -10/Subcaves | Shifting Twisted Machinery released Mak. Light Armor Plating 707 | -10/Subcaves | Shifting Twisted Machinery released Spk. Treads 742 | -10/Subcaves | Visited Clippyterm 1161 | -10/Subcaves | Discovered new exit (range 16) 1185 | -10/Subcaves | Entered Materials 1185 | -8/Materials | Evolved 4 slots: Utility x3, Weapon x1 1313 | -8/Materials | Garrison activated, responded to threat 1772 | -8/Materials | Build established: Scavenger-Tank 1953 | -8/Materials | Discovered new exit (range 10) 1974 | -8/Materials | Entered Factory 1974 | -7/Factory | Evolved 2 slots: Propulsion x1, Utility x1 2123 | -7/Factory | Discovered new exit (range 16) 2152 | -7/Factory | Build established: Mutant 2213 | -7/Factory | Entered another Factory area 2213 | -6/Factory | Evolved 2 slots: Power x1, Propulsion x1 2680 | -6/Factory | Lost 5 parts (1p2n2u) 2706 | -6/Factory | Build established: Tank 3095 | -6/Factory | Core integrity fell below 50% 3140 | -6/Factory | Lost 17 parts (3p4n6u4w) 3385 | -6/Factory | Build established: Mutant 3431 | -6/Factory | Core integrity fell below 20% 3465 | -6/Factory | Lost 3 parts (1p1n1w) 3512 | -6/Factory | Spotted B-75 Beast 3514 | -6/Factory | Discovered new exit (range 14) 3518 | -6/Factory | Destroyed by B-75 Beast with Heavy Plasma Cannon Last Messages --------------- 03457_ Acquired Fusion Compressor. 03459_ ALERT: Hostiles spotted, dispatching reinforcements to Terminal F007. 03463_ ALERT: Rogue bot located, Programmers report to Factory Zone 5H. 03482_ Acquired Deuterium Engine. 03486_ Acquired Plasma Rifle. 03495_ Imp. Heat Sink destroyed. 03495_ Penetrated by Slug. 03496_ K-01 Serf cleans the Construction Platform. 03497_ Slug penetrates Wall. 03499_ Penetrated by Slug. 03499_ Lgt. Ion Engine destroyed. 03505_ Penetrated by Slug. 03506_ Slug penetrates Wall. 03512_ Penetrated by Slug. 03514_ EXIT=FOUND 03515_ Slug penetrates Wall. 03515_ Nuclear Reactor explodes. 03516_ Acquired 6 matter. 03516_ U-05 Engineer lays Concrete. Map ----- +----------------------------------------------------+ | #???????????????????????????????????????? | | #???????????????????????????????????????? | | #???????????????????????????????????????? | | #??????????????? ???????????????????? | | ???????????????? ??????????????????? | | ?? ?????????????????? ???????????????????? | | ####+#########??????????? ???????????????????? | | #??????????? ????????????????????? | | #########??? ????????????????????? | | + #??? ?????????????????????? | | # """ #??? ?????????????????????? | | # """ #??? ??????????????????????? | | ###+#### # """ #??? ??????????????????????? | | ? ??# # ####k#########??????????????? | | ?""""??# # """ # ^ #??????????????? | | ?"""""?# # """ # ^ #??????????????? | | ?""""" # # """ # #??????????????? | | """""" / + # ^ +??????????????? | | # # # u ^ #??????????????? | | ! # # # #??????????????? | | # ######### #??????????????? | | ######## hh #??????????????? | | ???????# #??????????????? | | ???????# /] """ ###????????????? | | ???????# ] """ !!!BB#????????????? | | ???????# """ @ !!!BB#????????????? | | ???????# !!!###????????????? | | ???????# #??????????????? | | ?????+^^ #????????????? | | ?????###+###### #????????????? | | ??????????????# < #????????????? | | ??????????????# #????????????? | | ??????????????# #????????????? | | ??????????????####+#############+####????????????? | | ?????????????????????????????????????????????????? | | ?????????????????????????????????????????????????? | | ?????????????????????????????????????????????????? | | ?????????????????????????????????????????????????? | | ?????????????????????????????????????????????????? | | ?????????????????????????????????????????????????? | | ?????????????????????????????????????????????????? | | ?????????????????????????????????????????????????? | | ?????????????????????????????????????????????????? | | ?????????????????????????????????????????????????? | | ?????????????????????????????????????????????????? | | ?????????????????????????????????????????????????? | | ?????????????????????????????????????????????????? | | ?????????????????????????????????????????????????? | | ?????????????????????????????????????????????????? | | ?????????????????????????????????????????????????? | +----------------------------------------------------+ Best States ------------- Heat Dissipation 64 Coolant Potential 65 Energy Generation 38 Energy Capacity 370 Matter Stores 450 Matter Capacity 450 Sight Range 22 Robot Scan Range 15 Terrain Scan Range 16 Terrain Scan Density 10 ECM Strength 2 Armor Coverage 450 Resistance: KI 20 Resistance: EM 25 Evasion (%) 62 Targeting Accuracy 8 Target Analysis 5 Recoil Reduction 1 Item Schematics ----------------- None Robot Schematics ------------------ None Fabricated ------------ Nothing Alien Tech Used ----------------- None Achievements -------------- Gunslinger Challenges ------------ None Game ------ Seed CoolingHackingRigger Manual? 0 Play Time 00:47:32 Cumulative 36.1 hours Start 2024.06.03 @ 15:08:50 End 2024.06.05 @ 16:21:59 Sessions 9 Manual Loads 0 Difficulty Rogue Special Mode None Game No. 44 Rogue 44 Adventurer 0 Explorer 0 Win Type - Total 0 Types 0/0/0/0/0/0/0/0/0 Lore% 13 Gallery% 35 Achievement% 23 Wizard Run 0 Options --------- Layout 0 ASCII 0 Keyboard 0 Movement Mouse Keybinds 0 Fullscreen 1 Font 24/Smallcaps Map View 76x50 Zoom Use 0% Tactical HUD 1 Map Filters NONE Filters NONE Steam 1 RUN: c898cf71-f94d-443e-ad74-d8bf8ac14c1b